bitfinex/quotes_ETHUSD_20220308
["timestamp","ask_amount","ask_price","bid_price","bid_amount"]
[1646736121282,1.16091751,2591.4,2591.0,0.91090144]
[1646736121479,2.2415952,2591.4,2591.0,0.91090144]
[1646736121928,0.9654947,2591.3,2590.4,0.91090144]
[1646736122118,0.96554,2591.1,2590.4,0.91090144]
[1646736123122,0.96554,2591.1,2590.2,0.91090144]
[1646736123324,1.931121,2591.1,2590.2,0.91090144]
[1646736123526,0.00439985,2590.9,2590.2,0.91090144]
[1646736123724,0.96990985,2590.9,2590.2,0.91090144]
[1646736124526,0.96551,2590.9,2590.2,0.91090144]
[1646736124725,0.00439976,2590.7,2590.2,0.91090144]
[1646736124925,0.9656,2590.6,2590.2,0.91090144]
[1646736125530,1.93212,2591.0,2590.2,0.91090144]
[1646736125775,1.93116,2591.0,2590.0,0.91480477]
[1646736125972,0.00439951,2590.7,2590.2,0.91090144]
[1646736126773,0.00439951,2590.7,2590.3,0.91090144]
[1646736126972,0.96647,2590.9,2590.3,0.91090144]
[1646736127173,0.00439959,2590.7,2590.3,0.91090144]
[1646736127976,0.00439959,2590.7,2590.4,0.91090144]
[1646736128176,0.96551,2590.9,2590.4,0.91090144]
[1646736128378,0.00439968,2590.7,2590.4,0.91090144]
[1646736128875,0.00439968,2590.7,2590.5,0.91090144]
[1646736129279,0.96551,2590.9,2590.5,0.91090144]
[1646736129519,0.00439976,2590.7,2590.5,0.91090144]
[1646736129923,0.00439976,2590.7,2590.2,0.01577117]
[1646736130132,0.00439976,2590.7,2590.3,0.91090144]
[1646736130326,0.00439976,2590.7,2590.5,0.91090144]
[1646736130528,2.46024182,2591.2,2590.5,0.91090144]
[1646736130730,2.45928182,2591.2,2591.0,0.91090144]
[1646736131121,2.45928182,2591.2,2590.5,0.91090144]
[1646736131326,2.45928182,2591.2,2590.7,0.91090144]
[1646736131531,0.06597168,2591.6,2590.7,0.91090144]
[1646736131926,0.00096,2591.7,2590.7,0.91090144]
[1646736132127,1.8070303,2591.8,2590.9,0.91090144]
[1646736132327,1.9307485,2591.6,2591.0,0.91090144]
[1646736132526,9.5207761,2591.9,2591.0,0.91090144]
[1646736132527,7.29,2591.9,2591.0,0.91090144]
[1646736132726,7.29,2591.9,2591.0,4.41090144]
[1646736133180,7.29,2591.9,2591.0,16.28090144]
[1646736133379,2.46106218,2592.0,2591.1,5.5]
[1646736133585,2.46010218,2592.0,2591.2,5.98559059]
[1646736133782,2.46010218,2592.0,2591.4,12.78090144]
[1646736133980,2.46010218,2592.0,2591.6,12.78090144]
[1646736134185,0.03079936,2592.2,2591.8,0.91090144]
[1646736134381,0.03079936,2592.2,2591.9,0.91090144]
[1646736134782,0.03079936,2592.2,2592.1,0.91090144]
[1646736135381,0.03079936,2592.2,2592.1,4.41090144]
[1646736135581,0.03079936,2592.2,2592.1,0.91090144]
[1646736135782,0.03079936,2592.2,2592.1,4.41090144]
[1646736135980,0.03079936,2592.2,2592.1,0.91090144]
[1646736136188,0.39624016,2593.2,2592.2,5.5]
[1646736136389,0.39624016,2593.2,2592.4,11.87]
[1646736136390,0.1239669,2593.1,2592.4,11.87]
[1646736136583,0.1431637,2593.1,2592.8,11.87]
[1646736136936,0.1431637,2593.1,2592.9,12.78090144]
[1646736137124,0.1431637,2593.1,2592.9,0.91090144]
[1646736137328,0.1431637,2593.1,2592.6,2.31677]
[1646736137329,0.1431637,2593.1,2593.0,0.91090144]
[1646736138329,6.37e-05,2593.1,2593.0,1.91994994]
[1646736138530,6.37e-05,2593.1,2593.0,13.78994994]
[1646736139034,6.37e-05,2593.1,2593.0,1.91994994]
[1646736139329,6.37e-05,2593.1,2593.0,17.67834994]
[1646736139533,6.37e-05,2593.1,2593.0,14.17834994]
[1646736140779,6.37e-05,2593.1,2593.0,1.91994994]
[1646736140976,6.37e-05,2593.1,2592.6,0.91090144]
[1646736141977,6.37e-05,2593.1,2592.7,0.91090144]
[1646736142681,0.00442088,2593.0,2592.7,0.91090144]
[1646736143178,0.00442088,2593.0,2592.8,0.91090144]
[1646736143581,2.12968109,2593.0,2592.8,0.91090144]
[1646736143779,0.466,2592.9,2592.8,0.91090144]
[1646736143982,0.466,2592.9,2592.2,0.09239808]
[1646736144180,1.9299929,2592.8,2592.2,0.09239808]
[1646736144431,1.9299929,2592.8,2592.3,0.91090144]
[1646736144622,3.8598769,2592.8,2592.3,0.91090144]
[1646736145022,3.8598769,2592.8,2592.4,0.91090144]
[1646736145023,4.05544441,2592.8,2592.4,0.91090144]
[1646736145623,0.47042088,2592.7,2592.4,0.91090144]
[1646736145822,1.43546088,2592.7,2592.4,0.91090144]
[1646736146023,1.43546088,2592.7,2592.5,0.91090144]
[1646736146224,1.43104,2592.7,2592.5,0.91090144]
[1646736146425,1.43467739,2592.7,2592.5,0.91090144]
[1646736147025,1.43467739,2592.7,2592.2,0.09239808]
[1646736147026,1.43467739,2592.7,2592.6,0.91090144]
[1646736147226,0.9652707,2592.5,2592.2,0.09239808]
[1646736147427,0.466,2592.4,2592.2,0.09239808]
[1646736147626,1.43124,2592.4,2592.2,0.09239808]
[1646736148283,1.43124,2592.4,2591.6,0.3859]
[1646736148284,4.93052,2592.3,2591.6,0.3859]
[1646736148480,0.96525,2592.2,2590.9,3.9547]
[1646736148780,2.12703751,2592.2,2590.9,7.4547]
[1646736149184,2.12703751,2592.2,2591.5,1.02599639]
[1646736149185,1.93147,2592.2,2591.5,1.02599639]
[1646736149481,1.93147,2592.2,2591.7,11.87]
[1646736149482,0.9650566,2592.2,2591.7,11.87]
[1646736149684,0.00872217,2592.6,2591.8,3.5]
[1646736149685,0.00968217,2592.6,2591.8,3.5]
[1646736149880,0.00872217,2592.6,2591.6,3.5]
[1646736150081,0.00442666,2592.0,2591.6,3.5]
[1646736150282,0.00442666,2592.0,2591.6,15.37]
[1646736150882,0.00872217,2592.6,2591.6,15.37]
[1646736151081,0.00872217,2592.6,2592.3,1.08489392]
[1646736151481,0.00872217,2592.6,2591.6,15.37]
[1646736151681,0.00872217,2592.6,2591.6,3.5]
[1646736151934,0.00872217,2592.6,2591.6,15.37]
[1646736152520,0.00442666,2592.2,2591.6,15.37]
[1646736152720,0.00442666,2592.2,2591.9,1.20993177]
[1646736153527,0.9649391,2592.4,2591.9,1.20993177]
[1646736153727,0.00442666,2592.2,2591.9,1.20993177]
[1646736154027,0.00442666,2592.2,2591.8,0.01414695]
[1646736155029,2.8953783,2592.2,2591.8,0.01414695]
[1646736155230,1.93426292,2592.1,2591.8,0.01414695]
[1646736155528,2.40026292,2592.1,2591.8,0.01414695]
[1646736155777,2.3966269,2592.1,2591.8,0.01414695]
[1646736155979,2.39771771,2592.1,2591.8,0.01414695]
[1646736156876,2.3966269,2592.1,2591.8,0.01414695]
[1646736157083,5.2927969,2592.1,2591.8,0.01414695]
[1646736157277,0.96537,2592.0,2591.8,0.01414695]
[1646736157476,5.966,2591.9,2590.9,0.3859]
[1646736157677,1.93119,2591.6,2590.3,2.8253]
[1646736157876,1.93119,2591.6,2590.2,2.9538]
[1646736158078,0.00096,2591.5,2590.3,2.45656151]
[1646736158282,0.96559,2591.3,2590.3,0.88194836]
[1646736158481,0.001328,2591.1,2589.9,3.5]
[1646736158981,0.9656947,2591.0,2590.1,3.5]
[1646736159186,1.9327173,2591.1,2590.1,3.5]
[1646736159433,1.9313893,2591.1,2590.1,3.5]
[1646736159624,0.00442658,2590.7,2590.1,3.5]
[1646736159821,2.9146733,2591.1,2590.8,0.00885316]
[1646736160526,0.9655901,2591.0,2590.8,0.00885316]
[1646736162127,0.9669181,2591.0,2590.8,0.00885316]
[1646736162323,0.001328,2591.0,2590.8,1.12398915]
[1646736162525,0.001328,2591.0,2590.8,0.00885316]
[1646736162922,2.8966921,2591.6,2590.8,0.00885316]
[1646736163171,1.93203,2591.5,2590.8,0.00885316]
[1646736163375,0.9667701,2591.0,2590.8,0.00885316]
[1646736163976,0.9667701,2591.0,2590.9,0.01431974]
[1646736164177,0.9654421,2591.0,2590.9,0.01431974]
[1646736166777,0.9654421,2591.0,2590.9,0.8210835]
[1646736167429,6.4654421,2591.0,2590.8,0.00885316]
[1646736167625,1.16100961,2591.0,2590.8,0.00885316]
[1646736167827,1.62700961,2591.0,2590.8,0.00885316]
[1646736168025,0.9654421,2591.0,2590.8,0.00885316]
[1646736169027,0.9654421,2591.0,2590.9,0.01301795]
[1646736169227,2.37156022,2591.0,2590.9,0.01301795]
[1646736169428,4.0,2590.8,2589.8,0.00384479]
[1646736169729,0.466,2590.7,2589.8,0.00384479]
[1646736170133,0.466,2590.7,2589.3,2.3174]
[1646736170330,0.00096,2590.6,2589.8,0.00384479]
[1646736170528,0.466,2590.5,2589.8,0.00384479]
[1646736170775,1.9318172,2590.3,2589.8,0.00384479]
[1646736171174,2.3978172,2590.3,2589.8,0.00384479]
[1646736171375,2.3978172,2590.3,2588.8,1.57530108]
[1646736171577,2.3978172,2590.3,2588.9,3.5]
[1646736171578,2.3987772,2590.3,2588.9,3.5]
[1646736171777,2.3987772,2590.3,2589.8,0.0051657]
[1646736171976,2.3978172,2590.3,2589.8,0.0051657]
[1646736172278,0.96621,2589.9,2589.8,0.0051657]
[1646736172579,0.96621,2589.9,2588.7,1.1713]
[1646736172580,1.43221,2589.9,2588.7,1.1713]
[1646736172778,1.43221,2589.9,2589.8,0.0040253]
[1646736173888,1.43221,2589.9,2588.5,2.8009]
[1646736173889,1.9325,2589.7,2588.3,1.2105]
[1646736174082,1.9325,2589.7,2588.4,1.57559739]
[1646736174083,0.96635,2589.3,2588.4,1.57559739]
[1646736174283,0.96635,2589.3,2587.7,0.386]
[1646736174284,0.466,2589.2,2587.7,0.386]
[1646736174527,0.466,2589.2,2587.8,1.5757704]
[1646736174729,4.9331941,2589.1,2587.6,2.66934551]
[1646736174928,3.66612,2589.0,2587.7,1.57592202]
[1646736175129,3.0,2588.9,2587.3,3.5]
[1646736175329,3.3660325,2588.8,2588.3,0.00402763]
[1646736175529,6.8660325,2588.8,2588.3,0.00402763]
[1646736175729,3.8660325,2588.8,2588.3,0.00402763]
[1646736175932,1.9334463,2588.7,2588.3,0.00402763]
[1646736176130,0.466,2588.6,2587.2,1.1758]
[1646736176330,1.9334655,2588.3,2587.3,1.57606475]
[1646736176629,2.3994655,2588.3,2587.2,1.1758]
[1646736176829,2.3994655,2588.3,2587.0,1.1472]
[1646736177030,3.3661983,2588.3,2587.1,1.57609271]
[1646736177231,0.466,2588.3,2587.1,1.57609271]
[1646736177831,1.9331028,2588.5,2587.5,0.00513922]
[1646736178576,0.9665087,2588.3,2587.0,1.1472]
[1646736178776,0.9665087,2588.3,2587.9,1.03324676]
[1646736178977,0.9665087,2588.3,2587.9,0.00381982]
[1646736179378,1.9758,2588.9,2587.9,0.00381982]
[1646736179579,1.2065,2589.4,2588.0,1.9324]
[1646736179777,1.2065,2589.4,2588.0,0.9662]
[1646736179778,0.96617,2589.4,2588.0,0.9662]
[1646736179978,0.96617,2589.4,2587.9,1.19556751]
[1646736180190,0.96617,2589.4,2588.7,1.19401893]
[1646736180376,0.96617,2589.4,2588.0,0.00368525]
[1646736180979,4.46617,2589.4,2587.9,2.7716]
[1646736181378,4.46617,2589.4,2588.6,0.0050013]
[1646736181581,0.96617,2589.4,2588.6,0.0050013]
[1646736182128,0.96617,2589.4,2587.9,2.7716]
[1646736182328,0.96617,2589.4,2588.0,0.96619]
[1646736182528,0.96617,2589.4,2588.9,0.00500087]
[1646736182930,0.5,2589.1,2588.9,0.00500087]
[1646736183128,2.3758,2589.5,2589.2,0.53386]
[1646736183333,1.43221,2589.6,2589.2,0.53386]
[1646736183533,0.9661852,2589.5,2589.2,0.53386]
[1646736183733,1.2661852,2589.5,2589.2,0.53386]
[1646736184034,1.7321852,2589.5,2589.2,0.53386]
[1646736184233,4.46617,2589.4,2589.2,0.53386]
[1646736184433,3.966,2589.3,2589.2,0.53386]
[1646736184834,5.5,2589.2,2588.1,1.1526]
[1646736185035,1.93297,2589.1,2588.1,1.1526]
[1646736185238,0.96649,2589.0,2588.4,1.11804551]
[1646736185439,0.466,2589.2,2588.4,1.11804551]
[1646736186074,2.3985242,2589.2,2588.4,1.11804551]
[1646736186275,0.96631,2589.0,2588.4,1.11804551]
[1646736187176,0.9662944,2588.9,2588.6,0.00377812]
[1646736187479,0.9664,2588.8,2588.6,0.00377812]
[1646736188081,0.466,2588.7,2588.6,0.00377812]
[1646736188279,0.9665206,2588.4,2587.4,3.5]
[1646736188478,0.9665206,2588.4,2587.4,3.8884]
[1646736188679,0.9665206,2588.4,2587.8,0.94720603]
[1646736189732,0.9665206,2588.4,2588.0,0.003779]
[1646736190531,0.9665206,2588.4,2587.9,1.1]
[1646736190926,0.9665206,2588.4,2588.1,0.00508009]
[1646736191928,0.9665206,2588.4,2587.9,1.1]
[1646736192127,0.9665206,2588.4,2588.1,0.00508002]
[1646736192329,1.9326934,2588.7,2588.1,0.00508002]
[1646736192531,5.8587,2589.2,2588.9,1.1]
[1646736192729,2.175,2589.2,2588.9,1.1]
[1646736192928,0.3,2589.2,2588.9,1.1]
[1646736193175,0.3,2589.3,2588.9,1.1]
[1646736193580,1.26628,2589.4,2588.9,1.10376887]
[1646736193780,0.96623,2589.3,2588.9,1.10376887]
[1646736193982,0.9661241,2589.3,2588.9,1.10376887]
[1646736194178,0.9661241,2589.3,2588.9,1.1]
[1646736194580,0.9661241,2589.3,2589.0,0.00367758]
[1646736194779,1.9322481,2589.6,2589.5,1.1]
[1646736195179,2.8982755,2589.6,2589.5,1.1]
[1646736195381,1.9322481,2589.6,2589.0,0.00367758]
[1646736195586,1.9322481,2589.6,2588.9,1.1]
[1646736195787,1.9322481,2589.6,2589.4,0.00498495]
[1646736195982,3.8645291,2589.6,2589.4,0.00498495]
[1646736196384,2.8983663,2589.6,2589.4,0.00498495]
[1646736196585,2.8983663,2589.6,2589.3,1.1]
[1646736197026,2.8983663,2589.6,2589.3,4.6]
[1646736197027,0.9661182,2589.6,2589.3,4.6]
[1646736197226,0.3862,2590.3,2589.3,4.6]
[1646736197424,0.00096,2590.7,2589.5,12.97]
[1646736197623,0.00096,2590.7,2589.7,1.1]
[1646736197624,0.9665848,2590.7,2589.7,1.1]
[1646736197825,0.9656248,2590.7,2590.6,1.1]
[1646736198631,0.00435858,2590.8,2590.6,4.6]
[1646736198827,0.00435858,2590.8,2589.8,12.26339225]
[1646736198828,0.00435858,2590.8,2590.7,1.1]
[1646736199028,0.96578,2590.6,2589.8,0.00499225]
[1646736199228,4.43155,2590.7,2589.8,0.00499225]
[1646736199229,0.96593,2590.4,2589.8,0.00499225]
[1646736199428,0.96593,2590.4,2589.8,0.00368416]
[1646736199635,0.9659853,2590.3,2589.8,0.00368416]
[1646736199830,0.466,2590.2,2589.8,0.00368416]
[1646736200028,0.66156751,2590.2,2589.8,0.00368416]
[1646736200231,0.19556751,2590.1,2589.2,1.58874266]
[1646736200428,0.96616,2589.7,2588.5,6.3389]
[1646736200681,1.9323167,2589.7,2588.3,7.5698]
[1646736200882,0.9661567,2589.7,2588.4,1.57573642]
[1646736201082,0.9661567,2589.7,2588.5,3.5]
[1646736201484,0.9661567,2589.7,2589.1,1.1433773]
[1646736201680,1.9322367,2589.7,2588.5,3.5]
[1646736201881,0.9661314,2589.4,2588.5,3.5]
[1646736202282,1.9323133,2589.8,2588.5,3.5]
[1646736202682,3.90131,2589.9,2588.6,1.96402266]
[1646736202885,0.96599,2589.7,2588.7,17.33402266]
[1646736203083,0.96599,2589.7,2588.8,1.57562266]
[1646736203286,0.96599,2589.7,2588.9,3.5]
[1646736203689,0.96599,2589.7,2589.4,1.2321589]
[1646736203888,0.96599,2589.7,2589.4,1.2278939]
[1646736204287,0.96599,2589.7,2589.4,1.2236839]
[1646736204532,1.93178,2590.2,2589.5,3.5]
[1646736204739,0.3,2590.3,2589.4,1.2236839]
[1646736204932,0.3,2590.3,2589.4,1.22160384]
[1646736205134,1.789,2590.4,2589.4,1.22160384]
[1646736205433,1.789,2590.4,2589.9,1.10506324]
[1646736205632,0.9658,2590.3,2589.9,1.10506324]
[1646736206337,1.9316024,2590.3,2589.9,1.10506324]
[1646736206534,1.9316024,2590.3,2589.1,3.5]
[1646736206735,1.9316024,2590.3,2589.0,12.83581]
[1646736206736,1.9316024,2590.3,2589.8,0.00530964]
[1646736206936,0.9658,2590.3,2589.8,0.00530964]
[1646736207739,0.9658,2590.3,2589.4,1.10053599]
[1646736207936,0.9658,2590.3,2589.8,0.00401328]
[1646736208178,0.9658647,2590.2,2589.8,0.00401328]
[1646736208381,0.96591,2590.1,2589.8,0.00401328]
[1646736208582,1.93184,2590.4,2589.8,0.00401328]
[1646736208781,11.8636,2591.1,2589.5,3.5]
[1646736208782,0.00096,2590.8,2590.2,1.0201874]
[1646736208984,0.5,2591.0,2590.2,1.0201874]
[1646736209183,0.00431263,2590.8,2590.2,1.0201874]
[1646736210084,0.96569,2590.6,2590.2,1.0201874]
[1646736210286,1.9314012,2590.6,2589.7,0.0040105]
[1646736211284,1.9314012,2590.6,2589.6,0.3884]
[1646736211485,1.9314012,2590.6,2590.3,0.96879547]
[1646736211682,0.96569,2590.4,2590.3,0.96879547]
[1646736211937,0.96569,2590.4,2589.7,0.0040105]
[1646736212128,1.9314677,2590.4,2589.7,0.0040105]
[1646736212327,1.9314677,2590.4,2589.4,0.3884]
[1646736212528,1.9314677,2590.4,2589.5,1.96368035]
[1646736212728,1.9314677,2590.4,2589.7,0.0040105]
[1646736213128,1.9314677,2590.4,2589.8,0.99020026]
[1646736213531,1.9314677,2590.4,2589.7,50.0040105]
[1646736213732,1.9314677,2590.4,2589.7,50.0]
[1646736213932,1.9314677,2590.4,2589.7,50.00530614]
[1646736214532,0.96596,2590.2,2589.8,1.05855723]
[1646736214933,0.96596,2590.2,2589.7,50.0]
[1646736215133,0.96596,2590.2,2589.7,50.00530612]
[1646736215134,4.46596,2590.2,2589.7,50.00530612]
[1646736215776,2.89818,2590.2,2589.7,50.00530612]
[1646736215976,0.96603,2590.1,2589.7,50.0]
[1646736216176,0.96603,2590.1,2589.9,0.98862049]
[1646736216376,1.26596,2590.2,2589.9,0.98862049]
[1646736216779,0.96596,2590.2,2589.9,0.98862049]
[1646736217180,0.96596,2590.2,2589.7,50.0]
[1646736217378,0.96596,2590.2,2589.7,100.0038354]
[1646736218387,0.96596,2590.2,2589.7,100.0]
[1646736218584,0.96596,2590.2,2590.1,0.96109581]
[1646736219183,0.96596,2590.2,2589.7,100.00512898]
[1646736219436,0.96596,2590.2,2589.7,50.00512898]
[1646736219825,0.96596,2590.2,2589.7,50.0]
[1646736220026,0.96596,2590.2,2589.7,50.00512898]
[1646736220831,0.96596,2590.2,2589.9,1.01574537]
[1646736221533,0.96596,2590.2,2589.7,50.00495965]
[1646736222035,0.96596,2590.2,2589.7,50.0]
[1646736222231,0.96596,2590.2,2589.7,50.00495965]
[1646736222633,0.96596,2590.2,2590.0,1.19915581]
[1646736226584,0.91596,2590.2,2590.0,1.19915581]
[1646736226786,0.9698808,2590.5,2590.0,1.19915581]
[1646736227028,0.96557,2590.5,2590.0,1.19915581]
[1646736228435,0.96557,2590.5,2589.7,50.00367308]
[1646736228436,1.26557,2590.5,2589.7,50.00367308]
[1646736229338,2.2313628,2590.5,2589.7,50.0]
[1646736229538,0.96589,2590.3,2589.7,51.15885452]
[1646736230440,0.96589,2590.3,2589.7,50.0]
[1646736230678,1.93177,2590.2,2589.7,50.0049647]
[1646736231682,1.93177,2590.2,2589.9,1.12903917]
[1646736233385,1.93177,2590.2,2589.7,50.00500836]
[1646736234188,1.93178,2590.1,2589.7,50.0]
[1646736234438,1.93178,2590.1,2589.7,50.00500831]
[1646736234831,1.93178,2590.1,2589.8,1.09267714]
[1646736236333,2.23178,2590.1,2589.8,1.09267714]
[1646736240786,2.23178,2590.1,2589.7,50.00529832]
[1646736241188,2.23178,2590.1,2589.7,36.55458974]
[1646736241189,7.6299,2590.1,2589.7,36.55458974]
[1646736241389,0.96645,2589.8,2589.7,15.72534682]
[1646736241588,0.466,2589.8,2589.7,15.72534682]
[1646736241789,0.466,2589.8,2589.7,9.93242512]
[1646736242029,4.5,2589.7,2588.5,3.5]
[1646736242229,0.96631,2589.5,2588.6,1.57589731]
[1646736242430,1.43231,2589.5,2588.6,1.57589731]
[1646736242628,0.9663,2589.4,2588.7,5.07589731]
[1646736242829,0.9663,2589.4,2588.8,1.57589731]
[1646736243032,1.2663,2589.4,2588.9,1.57589731]
[1646736243231,1.2663,2589.4,2588.6,1.57589731]
[1646736243433,1.2663,2589.4,2588.7,1.57589731]
[1646736243636,1.2663,2589.4,2588.9,0.91966916]
[1646736244234,1.2663,2589.4,2588.9,0.92351812]
[1646736244435,1.2663,2589.4,2589.0,1.5758504]
[1646736245235,1.2663,2589.4,2589.1,0.00384867]
[1646736246078,1.2663,2589.4,2589.0,1.5758504]
[1646736246278,0.9663,2589.4,2589.0,1.5758504]
[1646736247480,0.9663,2589.4,2589.3,1.08342871]
[1646736247881,0.9663,2589.4,2589.1,0.00500114]
[1646736248683,0.9663,2589.4,2588.5,3.5]
[1646736248883,0.97628194,2589.4,2589.2,1.01085374]
[1646736249083,0.00998194,2589.4,2589.2,1.01085374]
[1646736249530,0.00998194,2589.4,2589.3,3.5]
[1646736249732,0.00998194,2589.4,2589.3,5.0756209]
[1646736250131,0.00998194,2589.4,2589.3,1.5756209]
[1646736250532,0.00998194,2589.4,2589.3,5.0756209]
[1646736250733,0.00998194,2589.4,2589.3,1.5756209]
[1646736251131,0.96602,2589.9,2589.4,0.01996387]
[1646736252334,0.96602,2589.9,2589.5,0.00487188]
[1646736252534,0.96606,2589.8,2589.5,0.00487188]
[1646736253385,0.96606,2589.8,2589.4,0.01996387]
[1646736253589,0.96606,2589.8,2589.5,0.00487188]
[1646736254087,0.466,2589.7,2589.5,0.00487188]
[1646736254285,1.4323036,2589.7,2589.5,0.00487188]
[1646736254688,1.4323036,2589.7,2589.4,0.01996387]
[1646736254689,1.93262,2589.5,2589.4,0.01996387]
[1646736255086,1.93262,2589.5,2589.4,6.387e-05]
[1646736255285,2.39862,2589.5,2589.4,6.387e-05]
[1646736257140,2.97430209,2589.5,2589.4,6.387e-05]
[1646736257542,3.27430209,2589.5,2589.4,6.387e-05]
[1646736257746,3.27430209,2589.5,2589.3,0.00484713]
[1646736257747,5.5,2589.4,2589.3,0.00484713]
[1646736257946,5.5,2589.3,2588.1,0.3865]
[1646736258146,5.5,2589.3,2588.2,1.57606844]
[1646736258147,0.96655,2588.8,2588.2,1.57606844]
[1646736258346,0.96655,2588.8,2588.3,1.57606844]
[1646736258546,0.96655,2588.8,2588.0,1.1577827]
[1646736258751,0.96655,2588.8,2588.1,1.57606166]
[1646736258948,0.96655,2588.8,2588.2,1.57606166]
[1646736259148,0.96655,2588.8,2587.8,1.57606166]
[1646736259349,0.96656,2588.5,2587.9,1.57608075]
[1646736259548,0.96656,2588.5,2588.0,1.57608075]
[1646736259749,1.93312,2588.5,2588.2,0.92895148]
[1646736260248,1.93312,2588.5,2587.5,4.66243398]
[1646736260249,1.93312,2588.5,2587.5,8.16243398]
[1646736260447,1.93312,2588.5,2587.6,1.57609082]
[1646736260685,1.93312,2588.5,2587.6,5.07609082]
[1646736260882,0.9666034,2588.3,2587.7,1.57609082]
[1646736261088,0.96671,2588.2,2587.6,1.57609082]
[1646736261294,1.26671,2588.2,2587.7,2.64929753]
[1646736261485,1.26671,2588.2,2587.3,5.2261]
[1646736261684,1.26671,2588.2,2587.4,1.5762314]
[1646736261884,1.26671,2588.2,2587.5,1.5762314]
[1646736262085,2.23342,2588.2,2587.6,1.5762314]
[1646736262288,0.96682,2587.9,2587.8,0.00529737]
[1646736262985,0.96682,2587.9,2587.7,1.17497109]
[1646736263290,1.93361,2587.9,2587.7,1.17497109]
[1646736263492,1.93361,2587.9,2587.7,1.18026861]
[1646736263992,0.96682,2587.9,2587.7,1.18026861]
[1646736264442,0.96682,2587.9,2587.7,1.17497109]
[1646736264631,0.96682,2587.9,2587.7,1.18026869]
[1646736265632,0.96682,2587.9,2587.7,1.17497109]
[1646736265833,0.96682,2587.9,2587.7,1.18026869]
[1646736266034,0.96682,2587.9,2587.7,0.0052976]
[1646736266633,0.96682,2587.9,2587.0,1.193]
[1646736266833,1.9337716,2587.6,2587.1,1.57634812]
[1646736267237,1.9337716,2587.6,2586.9,3.5]
[1646736267238,1.9337095,2587.9,2587.4,1.11946323]
[1646736268485,0.96671,2588.1,2587.4,1.11946323]
[1646736268687,1.1318,2588.3,2587.8,1.09211465]
[1646736268884,0.57689632,2588.7,2587.8,1.09211465]
[1646736269688,0.96667,2588.2,2587.8,1.09211465]
[1646736269892,4.1311,2588.9,2587.4,5.07171517]
[1646736270088,1.1815,2589.1,2587.6,0.3884]
[1646736270298,1.1815,2589.1,2587.8,0.3884]
[1646736270491,1.1815,2589.1,2588.0,0.3884]
[1646736270889,1.1815,2589.1,2588.8,1.08815039]
[1646736270890,0.96638,2589.0,2588.8,1.08815039]
[1646736271493,1.93271,2589.2,2588.8,1.08815039]
[1646736271694,1.93271,2589.2,2588.8,1.09344245]
[1646736272131,0.96617,2589.3,2588.9,3.5]
[1646736272333,6.30765,2589.8,2588.9,3.5]
[1646736272334,4.3753,2589.8,2588.9,3.5]
[1646736272532,0.59122945,2590.0,2588.9,3.8884]
[1646736272733,1.8736,2590.4,2588.9,3.8884]
[1646736273131,1.8736,2590.4,2589.8,0.88842581]
[1646736273132,0.00432849,2590.1,2589.8,0.88842581]
[1646736273837,1.93175,2590.8,2589.8,0.88842581]
[1646736274036,0.00354658,2590.1,2589.8,0.88842581]
[1646736275035,1.93175,2590.8,2589.8,0.88842581]
[1646736275235,0.00354658,2590.1,2589.8,0.88842581]
[1646736276282,1.93177,2590.6,2589.8,0.88842581]
[1646736276283,0.1972,2590.9,2589.8,13.14682581]
[1646736276484,0.1972,2590.9,2589.8,1.27682581]
[1646736276485,0.00354658,2590.1,2589.8,1.27682581]
[1646736276885,0.00354658,2590.1,2589.8,0.88842581]
[1646736277083,0.96943658,2590.1,2589.8,0.88842581]
[1646736277382,0.96589,2590.1,2589.8,0.88842581]
[1646736277783,0.96943658,2590.1,2589.8,0.88842581]
[1646736278689,2.91172447,2590.5,2589.8,1.27682581]
[1646736278690,0.96576,2590.3,2589.8,1.27682581]
[1646736278892,0.00366942,2590.1,2589.8,0.88842581]
[1646736279937,0.9658665,2590.4,2589.8,0.88842581]
[1646736280137,0.00366942,2590.1,2589.8,1.27682581]
[1646736280537,0.00366942,2590.1,2589.8,0.88842581]
[1646736280939,0.96953942,2590.1,2589.8,0.88842581]
[1646736281138,0.96587,2590.1,2589.8,0.88842581]
[1646736281338,0.96953942,2590.1,2589.8,0.88842581]
[1646736281638,0.96953942,2590.1,2589.4,0.3884]
[1646736282040,0.96605,2590.0,2589.4,0.3884]
[1646736282440,0.96599,2589.9,2589.4,0.3884]
[1646736282639,0.96599,2589.9,2589.8,0.93110502]
[1646736283039,0.00364229,2590.1,2589.8,0.93110502]
[1646736283486,0.00364229,2590.1,2589.8,13.18950502]
[1646736283684,0.01456833,2590.3,2589.8,1.31950502]
[1646736283883,0.00364258,2590.1,2589.8,13.18950502]
[1646736284282,0.00364258,2590.1,2589.8,1.31950502]
[1646736284687,0.9656,2590.7,2589.8,1.31950502]
[1646736284892,0.01456839,2590.5,2590.2,1.08115001]
[1646736285488,0.01456839,2590.5,2589.5,2.2809]
[1646736285489,0.98031839,2590.5,2589.5,2.2809]
[1646736285689,0.98031839,2590.5,2589.4,1.1518]
[1646736286189,0.00364655,2590.1,2589.4,1.1518]
[1646736286389,0.00364655,2590.1,2589.4,1.5402]
[1646736286590,0.00364655,2590.1,2589.7,1.07453539]
[1646736287040,0.01458401,2590.5,2589.7,1.07453539]
[1646736287244,1.93172,2590.3,2589.7,1.07453539]
[1646736287440,0.00364641,2590.1,2589.7,1.07453539]
[1646736288346,1.93172,2590.3,2589.7,1.07453539]
[1646736288545,0.00364641,2590.1,2589.7,1.07453539]
[1646736289349,0.00364641,2590.1,2589.7,13.33293539]
[1646736289549,3.39436,2590.9,2589.7,13.33293539]
[1646736289550,0.1972,2590.9,2589.7,13.33147894]
[1646736289759,0.00366462,2590.1,2589.9,12.2584]
[1646736289948,0.01465683,2590.4,2589.9,12.2584]
[1646736289949,0.01465683,2590.4,2590.1,12.26932923]
[1646736290152,0.01465683,2590.4,2590.1,12.73532923]
[1646736290351,0.01465683,2590.4,2590.1,13.73532923]
[1646736290686,0.1972,2590.9,2590.3,12.2584]
[1646736290885,0.1972,2590.9,2590.7,1.05184242]
[1646736291286,0.1972,2590.9,2590.8,12.2584]
[1646736291489,0.1972,2590.9,2590.7,1.05184242]
[1646736291686,0.1972,2590.9,2590.1,3.40752923]
[1646736291886,0.1972,2590.9,2590.1,0.01092923]